Cogmind - Beta 13 @@@ ROGUE MODE // 2024.05.03 @ 11:24:43 Player: ElectroBlueGuy Result: Destroyed by G-47 Trooper with Particle Gun Performance ------------- Evolutions (2) 1000 Regions Visited (4) 800 Robots Destroyed (39) 195 Value Destroyed (1107) 1107 Prototype IDs (8) 160 Alien Tech Used (0) 0 Bonus (0) 0 TOTAL SCORE: 3262 Bonus ------- None Cogmind --------- Core Integrity 0/550 Matter 280/300 Energy 51/160 System Corruption 6% Temperature Cool (9) Movement Core (450) Ox8 Location -8/Materials Parts ------- > --- POWER (2) -------- Light Nuclear Core > --- PROPULSION (4) --- (None) > --- UTILITY (3) ------ Large Storage Unit Hacking Suite Improved Recalibrator > --- WEAPON (2) ------- (None) > --- INVENTORY (15) --- Compact Matter Pod (150) Weight Redist. System Trap Scanner Improved Signal Interpreter System Restoration Module Explosive Trap Explosive Trap Explosive Trap Peak State ------------ > --- POWER ------------ Improved Ion Engine Light Nuclear Core > --- PROPULSION ------- Carbon-fiber Leg Wheel Compact Wheel > --- UTILITY ---------- Large Storage Unit Seismic Detector Hacking Suite > --- WEAPON ----------- Greatsword > --- INVENTORY -------- Compact Matter Pod Weight Redist. System Improved Signal Interpreter System Restoration Module Beam Rifle Heavy Ion Cannon Datajack Explosive Trap Explosive Trap Explosive Trap [Rating: 25] Favorites ----------- Power Ion Engine Engine Ion Engine Power Core Light Nuclear Core Propulsion Aluminum Leg Leg Aluminum Leg Wheel Wheel Utility Large Storage Unit Device Seismic Detector Storage Large Storage Unit Processor Transport Network Coupler Hackware Hacking Suite Weapon Beam Cannon Energy Gun Particle Gun Energy Cannon Beam Cannon Ballistic Gun Assault Rifle Launcher Grenade Launcher Slashing Weapon Greatsword Special Melee Weapon Datajack Build | -11 -10 -10 -9 -8 ------- Run | Yrd Mat Min Mat Mat Slots Evolved 4 | . . . 2 2 Power 1 | . . . . 1 Propulsion 2 | . . . 1 1 Utility 1 | . . . 1 . Weapon . | . . . . . Parts Attached 47 | 6 8 2 19 12 Power 9 | 1 1 . 4 3 Engine 6 | 1 1 . 3 1 Core 3 | . . . 1 2 Reactor . | . . . . . Propulsion 10 | 2 1 1 5 1 Treads . | . . . . . Leg 7 | 2 1 1 2 1 Wheel 3 | . . . 3 . Hover . | . . . . . Flight . | . . . . . Utility 11 | 1 4 . 2 4 Device 4 | . 1 . 1 2 Storage 4 | 1 2 . 1 . Processor 2 | . 1 . . 1 Hackware 1 | . . . . 1 Protection . | . . . . . Artifact . | . . . . . Weapon 17 | 2 2 1 8 4 Energy Gun 8 | 1 1 . 5 1 Energy Cannon 2 | . 1 . . 1 Ballistic Gun 4 | 1 . . 3 . Ballistic Cannon . | . . . . . Launcher 1 | . . 1 . . Special Weapon . | . . . . . Impact Weapon . | . . . . . Slashing Weapon 1 | . . . . 1 Piercing Weapon . | . . . . . Special Melee Weapon 1 | . . . . 1 Unidentified Prototypes 1 | . . . 1 . Parts Lost 28 | . 4 . 12 12 Power 6 | . 1 . 2 3 Propulsion 10 | . 2 . 4 4 Utility 1 | . . . . 1 Weapon 11 | . 1 . 6 4 Highest Loss Streak 10 | . 2 . 4 10 To Critical Strikes 1 | . . . 1 . Average Slot Usage (%) 88 | . 97 98 80 70 Engine 10 | . 13 14 3 9 Core 2 | . . . 6 4 Leg 19 | . 26 26 15 2 Wheel 2 | . . . 1 16 Device 1 | . 2 . . 8 Storage 16 | . 14 14 21 9 Processor 10 | . 11 14 11 2 Energy Gun 6 | . 8 . 11 1 Energy Cannon 5 | . 5 14 1 1 Ballistic Gun 7 | . 14 1 6 1 Launcher 3 | . . 12 1 . Naked Turns . | . . . . . Heaviest Build 40 | 14 30 31 33 40 Greatest Support 36 | 20 20 20 36 36 Greatest Overweight (x) 10 | . 2 2 10 9 Average Overweight (x) 1 | . . 1 1 1 Largest Inventory Capacity 15 | 8 15 15 15 15 Average Capacity 14 | 6 13 15 15 15 Most Carried 15 | 5 10 12 15 15 Average Carried 9 | 2 7 10 11 11 Final Capacity 15 | 8 15 15 15 15 Final Carried 14 | 2 8 12 14 8 Class Distribution -------------------- 75% | Mutant 24% | Scavenger-Mutant Dominant Class ---------------- Mutant | -10/Materials Mutant | -10/Mines Mutant | -9/Materials Scavenger-Mutant | -8/Materials Resources | -11 -10 -10 -9 -8 ----------- Run | Yrd Mat Min Mat Mat Matter Collected 961 | 198 284 33 348 98 Remotely . | . . . . . Salvage Created 1524 | . 381 . 665 478 Parts 74 | . 24 . 33 17 Haulers Intercepted 4 | . 2 . 2 . Recyclers Shooed 1 | . . . 1 . Parts Field Recycled . | . . . . . Retrieved Matter . | . . . . . Parts Self-Destructed . | . . . . . Prevented . | . . . . . Kills | -11 -10 -10 -9 -8 ------- Run | Yrd Mat Min Mat Mat Combat Hostiles Destroyed 32 | . 8 . 17 7 Melee 5 | . . . . 5 Guns 18 | . 6 . 12 . Cannons 4 | . 2 . . 2 AOE 4 | . . . 4 . Classes Destroyed 9 | . 4 . 1 4 Hauler 4 | . 2 . 2 . Recycler 1 | . . . . 1 Operator 1 | . . . . 1 Watcher 1 | . 1 . . . Swarmer 9 | . 3 . 6 . Grunt 17 | . 5 . 7 5 Brawler 1 | . . . . 1 Sentry 4 | . . . 4 . Hunter 1 | . . . . 1 Best Kill Streak 4 | . 4 . 4 4 Combat Bots Only 4 | . 3 . 4 4 Max Kills in Single Turn 2 | . 2 . 2 1 Gunslinging . | . . . . . Exploded 2 | . . . 2 . Melee 1 | . . . . 1 Uniques/NPCs Destroyed . | . . . . . Combat | -11 -10 -10 -9 -8 -------- Run | Yrd Mat Min Mat Mat Hostile Shots Fired 347 | . 60 . 159 128 Missed 104 | . 16 . 48 40 Damage Taken 3429 | . 535 . 1415 1479 Core 998 | . 71 . 377 550 Absorbed by Shields . | . . . . . Core Remaining (%) 58 | 100 . 71 5 . Volleys Fired 125 | . 41 . 73 11 Largest 2 | . 2 . 2 2 Hottest 121 | . 85 . 115 121 Shots Fired 224 | . 78 . 124 22 Gun 200 | . 67 . 117 16 Cannon 21 | . 11 . 4 6 Launcher 3 | . . . 3 . Special . | . . . . . Kinetic 82 | . 41 . 36 5 Thermal 125 | . 33 . 75 17 Explosive 3 | . . . 3 . Electromagnetic 14 | . 4 . 10 . Robot Hit Streak 17 | . 10 . 17 12 Robot Miss Streak 5 | . 3 . 5 2 Penetration Max . | . . . . . Secondary Targets 4 | . 1 . 3 . Max Gunslinging Chain 1 | . 1 . 1 . Shots Hit Robots 172 | . 41 . 97 34 Core Hits 62 | . 17 . 33 12 Critical Kills . | . . . . . Critical Parts Destroyed . | . . . . . Critical Strikes 6 | . . . 5 1 Burn 5 | . . . 5 . Sever 1 | . . . . 1 Melee Attacks 26 | . . . . 26 Impact . | . . . . . Slashing 23 | . . . . 23 Piercing . | . . . . . Sneak Attacks 1 | . . . . 1 Combat Hostiles . | . . . . . Follow-up Attacks . | . . . . . Damage Inflicted 3334 | . 611 . 1532 1191 Guns 1948 | . 486 . 1308 154 Cannons 307 | . 125 . 17 165 Explosions 205 | . . . 205 . Melee 872 | . . . . 872 Ramming 2 | . . . 2 . Kinetic 803 | . 349 . 410 44 Thermal 1284 | . 235 . 774 275 Explosive 205 | . . . 205 . Electromagnetic 168 | . 27 . 141 . Impact . | . . . . . Slashing 872 | . . . . 872 Piercing . | . . . . . Highest Corruption 6 | . . . . 6 Average Corruption 5 | . . . . 5 Corruption Purged . | . . . . . Corruption Blocked . | . . . . . Effects 2 | . . . . 2 Message Errors 1 | . . . . 1 Matter Fused 1 | . . . . 1 Overload Shots . | . . . . . Overflow Damage 149 | . . . 32 117 Projectiles . | . . . . . Explosions 32 | . . . 32 . Melee 117 | . . . . 117 Knockbacks . | . . . . . Impact . | . . . . . Kinetic . | . . . . . Secondary . | . . . . . Self-Inflicted Damage 75 | . . . 75 . Shots 3 | . . . 3 . Rammed . | . . . . . Targets Rammed 2 | . . . 2 . Kicked 2 | . . . 2 . Crushed . | . . . . . Highest Temperature 351 | . 192 . 338 351 Average Temperature 90 | . 63 . 101 120 Received Heat Transfer 1587 | . 267 . 516 804 Effects 1 | . . . 1 . Matter Decay 1 | . . . 1 . Siege Activations . | . . . . . Robots Corrupted . | . . . . . Combat Hostiles . | . . . . . Parts Fried . | . . . . . Impact Corruptions . | . . . . . Robots Melted 1 | . . . 1 . Combat Hostiles 1 | . . . 1 . Parts Melted 6 | . 1 . 5 . Heat Transferred 3478 | . 518 . 2442 518 Parts Sabotaged . | . . . . . Parts Stolen . | . . . . . Parts Stripped . | . . . . . Power Chain Reactions . | . . . . . Alert | -11 -10 -10 -9 -8 ------- Run | Yrd Mat Min Mat Mat Peak Influence 235 | . 133 16 235 125 Initial 48 | . . 16 . 48 Average 70 | . 70 10 116 65 Maximum Alert Level 1 | . . . 1 . Low Security (%) 94 | 100 100 100 82 100 Level 1 5 | . . . 17 . Level 2 . | . . . . . Level 3 . | . . . . . Level 4 . | . . . . . Level 5 . | . . . . . High Security . | . . . . . Max Security . | . . . . . Squads Dispatched 4 | . . . 1 3 Investigation . | . . . . . Extermination . | . . . . . Reinforcement 4 | . . . 1 3 Assault . | . . . . . Garrison . | . . . . . Intercept . | . . . . . Searches Triggered . | . . . . . Construction Impeded . | . . . . . Haulers Reinforced . | . . . . . Active Scanning Responses . | . . . . . Cargo Convoy Interrupts . | . . . . . Stealth | -11 -10 -10 -9 -8 --------- Run | Yrd Mat Min Mat Mat Distress Signals 2 | . . . 2 . Communications Jammed . | . . . . . Distress Signals . | . . . . . Times Spotted 53 | . 16 . 23 14 Peak Tracking Total 6 | . 4 . 6 6 Tactical Retreats 4 | . . . 4 . Traps | -11 -10 -10 -9 -8 ------- Run | Yrd Mat Min Mat Mat Traps Triggered . | . . . . . Indirectly . | . . . . . Trap Hack Attempts . | . . . . . Triggered . | . . . . . Disarmed . | . . . . . Reprogrammed . | . . . . . Reused . | . . . . . Traps Extracted . | . . . . . Installed . | . . . . . Triggered . | . . . . . Most Traps Carried 3 | . . 3 3 3 Machines | -11 -10 -10 -9 -8 ---------- Run | Yrd Mat Min Mat Mat Machines Disabled 1 | . . . 1 . Max in Single Turn 1 | . . . 1 . Machines Repaired . | . . . . . Machines Dismantled . | . . . . . Machines Sabotaged . | . . . . . Overloaded Fab Kills . | . . . . . Hacking | -11 -10 -10 -9 -8 --------- Run | Yrd Mat Min Mat Mat Machines Accessed 9 | . 6 . . 3 Terminals 7 | . 4 . . 3 Fabricators . | . . . . . Repair Stations . | . . . . . Recycling Units 2 | . 2 . . . Scanalyzers . | . . . . . Garrison Access . | . . . . . Total Hacks 32 | . 24 . . 8 Successful 16 | . 11 . . 5 Failed 16 | . 13 . . 3 Catastrophic . | . . . . . Database Lockouts . | . . . . . Manual . | . . . . . Terminals 25 | . 17 . . 8 Fabricators . | . . . . . Repair Stations . | . . . . . Recycling Units 7 | . 7 . . . Scanalyzers . | . . . . . Garrison Access . | . . . . . Terminal Hacks 12 | . 7 . . 5 Prototype ID Bank 4 | . 3 . . 1 Branch Access Points 1 | . 1 . . . Emergency Access Points 1 | . 1 . . . Alert Level 1 | . . . . 1 Unreport Threat 1 | . . . . 1 Locate Traps 2 | . 1 . . 1 Maintenance Status 1 | . . . . 1 Zone Layout 1 | . 1 . . . Fabricator Hacks . | . . . . . Repair Station Hacks . | . . . . . Recycling Unit Hacks 4 | . 4 . . . Process 1 | . 1 . . . Report Inventory 2 | . 2 . . . Retrieve Matter 1 | . 1 . . . Scanalyzer . | . . . . . Garrison Access Hacks . | . . . . . Unauthorized Hacks . | . . . . . Terminals . | . . . . . Fabricators . | . . . . . Repair Stations . | . . . . . Recycling Units . | . . . . . Scanalyzers . | . . . . . Garrison Access . | . . . . . Data Cores Recovered . | . . . . . Used . | . . . . . Hacking Detections 9 | . 6 . . 3 Full Trace Events 1 | . . . . 1 Feedback Events . | . . . . . Feedback Blocked . | . . . . . Robot Schematics Acquired . | . . . . . Robots Built . | . . . . . Authchips . | . . . . . Time . | . . . . . Total Robot Build Rating . | . . . . . Part Schematics Acquired . | . . . . . Parts Built . | . . . . . Authchips . | . . . . . Time . | . . . . . Total Part Build Rating . | . . . . . Parts Repaired . | . . . . . Time . | . . . . . Parts Recycled . | . . . . . Recycled Matter 261 | . 261 . . . Retrieved Matter . | . . . . . Retrieved Components . | . . . . . Parts Scanalyzed . | . . . . . Part Schematics Acquired . | . . . . . Parts Damaged . | . . . . . Bothacking | -11 -10 -10 -9 -8 ------------ Run | Yrd Mat Min Mat Mat Used RIF Installer . | . . . . . Robots Hacked 1 | . . . . 1 Non-combat . | . . . . . Combat 1 | . . . . 1 Robot Hacks Applied 1 | . . . . 1 parse_system 1 | . . . . 1 Relay Couplers Released . | . . . . . Fabnet Peak Effective % . | . . . . . Robots Rewired . | . . . . . Allies Hacked . | . . . . . Hacks Repelled . | . . . . . Allies | -11 -10 -10 -9 -8 -------- Run | Yrd Mat Min Mat Mat Total Allies . | . . . . . Largest Group . | . . . . . Highest-Rated Group . | . . . . . Highest-Rated Ally . | . . . . . Total Orders . | . . . . . Ally Attacks . | . . . . . Total Damage . | . . . . . Kills . | . . . . . Allies Corrupted . | . . . . . Allies Melted . | . . . . . Intel | -11 -10 -10 -9 -8 ------- Run | Yrd Mat Min Mat Mat Robot Analysis Total . | . . . . . Derelict Logs Recovered . | . . . . . Drone Launches . | . . . . . Drone Recoveries . | . . . . . Exploration | -11 -10 -10 -9 -8 ------------- Run | Yrd Mat Min Mat Mat Turns Passed 2945 | 62 925 630 942 386 Spaces Moved 1183 | 43 421 308 281 130 Core 31 | 9 . . 12 10 Treads . | . . . . . Legs 1004 | 34 421 308 231 10 Wheels 148 | . . . 38 110 Hover . | . . . . . Flight . | . . . . . Fastest Speed 50 | 50 120 190 86 101 Average Speed 188 | 105 179 196 231 134 Slowest Speed 550 | 120 260 260 550 500 Overloaded Moves . | . . . . . Propulsion Burnouts . | . . . . . Robots Hopped . | . . . . . Cave-ins Triggered . | . . . . . Exploration Rate (%) 29 | 4 51 52 23 16 Regions Visited 4 Branch Regions 1 Pre-discovered Areas . | . . . . . Known Exits Taken 1 | . 1 . . . Unknown Exits Taken 3 | 1 . 1 1 . Scrap Searched 1 | . . 1 . . Spaces Dug . | . . . . . Terrain Destroyed 22 | . . . 22 . Melee . | . . . . . Projectile . | . . . . . AOE 22 | . . . 22 . Terrain Rammed . | . . . . . Walls Destroyed . | . . . . . Machines Disabled . | . . . . . Actions | -11 -10 -10 -9 -8 --------- Run | Yrd Mat Min Mat Mat Total 1628 | 60 513 334 445 276 Wait 178 | . 32 20 50 76 Move 1179 | 42 420 307 280 130 Hop . | . . . . . Pick Up 56 | 10 11 5 18 12 Fast Attach . | . . . . . Attach 35 | 6 4 1 15 9 Detach 1 | . . . 1 . Swap 12 | . 4 1 4 3 Drop 14 | 2 1 . 2 9 Fire 125 | . 41 . 73 11 Melee 26 | . . . . 26 Ram . | . . . . . Kick 2 | . . . 2 . Crush . | . . . . . Escape Stasis . | . . . . . Rewire . | . . . . . Trap . | . . . . . Miscellaneous . | . . . . . Route ------- -11/Scrapyard -10/Materials (discovered 2 exits: *Min x2) -10/Mines -9/Materials (discovered 2 exits: *Mat / [*Min]) -8/Materials History --------- Turn | Location | Event 7 | -11/Scrapyard | Discovered new exit (range 16) 63 | -11/Scrapyard | Entered Materials 312 | -10/Materials | Build established: Mutant 544 | -10/Materials | Identified exit to Mines 988 | -10/Materials | Entered Mines 1055 | -10/Mines | YI-UF0 nonchalantly dropped a Grenade Launcher on the ground 1113 | -10/Mines | Found a hidden stash of uninstalled traps 1432 | -10/Mines | Discovered new exit (range 6) 1618 | -10/Mines | Entered Materials 1618 | -9/Materials | Evolved 2 slots: Propulsion x1, Utility x1 1808 | -9/Materials | Lost 4 parts (1p3w) 2039 | -9/Materials | Build established: Scavenger-Mutant 2062 | -9/Materials | Core integrity fell below 50% 2183 | -9/Materials | Discovered new exit (range 15) 2368 | -9/Materials | Discovered new exit (range 13) 2431 | -9/Materials | Build established: Mutant 2445 | -9/Materials | Core integrity fell below 20% 2450 | -9/Materials | Lost 3 parts (1p1n1w) 2560 | -9/Materials | Entered another Materials area 2560 | -8/Materials | Evolved 2 slots: Power x1, Propulsion x1 2833 | -8/Materials | Build established: Scavenger-Mutant 2908 | -8/Materials | Core integrity fell below 50% 2936 | -8/Materials | Core integrity fell below 20% 2946 | -8/Materials | Destroyed by G-47 Trooper with Particle Gun Last Messages --------------- 02915_ Fusion Modulator explodes. 02915_ G-47 Trooper destroyed. 02915_ Terminal disabled. 02915_ M-28 Smith destroyed. 02916_ Hvy. Ion Cannon destroyed. 02916_ Material Compactor disabled. 02918_ R-06 Scavenger collects Aluminum Leg. 02923_ R-06 Scavenger collects Backup Power III. 02926_ R-06 Scavenger collects Backup Propulsion III. 02929_ R-06 Scavenger collects Backup Laser III. 02929_ Critical hit (Burn: +37). 02929_ Acquired Imp. Recalibrator. 02930_ Seismic Detector destroyed. 02931_ A-02 Transporter destroyed. 02938_ U-05 Engineer builds a Wall. 02942_ Acquired Lgt. Nuclear Core. 02943_ U-05 Engineer builds a Wall. 02945_ R-06 Scavenger collects Prototype Flight Unit. Map ----- +----------------------------------------------------+ | ???????????????????????????????????????????????? | | ???????????????????????????????????????????????? | | ????????????? ???????????????????????????????? | | ???????????? ???????????????????????????????? | | ????????????# #??????????????????????????????? | | ????????????# #??????????????????????????????? | | ????????????# #??????????????????????????????? | | ????????????# #??????????????????????????????? | | ????????????# #??????????????????????????????? | | ????????????# #??????????????????????????????? | | ????????????# #??????????????????????????????? | | ????????????# #??????????###########?????????? | | #######?????# ############ ! #?????????? | | /[]]==#?????# ## + #?????????? | | /[ ]==#?????# ## """ # #?????????? | | !=!!|=#????## ## """"" # """ #?????????? | | %%=##+### # """"" #%""" " " #?????????? | | =!* / # """"" #[""" "T" #?????????? | | =%! % T + """ #!!% """ #?????????? | | # #=%% #????+????? | | # ;##+######### #????? | | ###########;;;;; !%[ o #????? | | rg!g= +????? | | %%[%[[ #????? | | ######## ####### g[[ #### ##????? | | #?????? #????# @ ! #### #??????????? | | #????? ????# #???+#??????????? | | #????### ???# #???????????????? | | #????#""" ???# #???????????????? | | ######"T"####### #???????????????? | | #???????????????? | | #???????????????? | | ### """ """ +???????????????? | | ??# """"" """"" """" #???????????????? | | ??# """"" """"" """" #???????????????? | | ??# """"" """"" """"" ???????????????? | | ??+ """ """ ???" ??????????????? | | ??# ?? ?? ???? ??????????????? | | ??# ???? ??? ??????????????? | | ??# ???###???"#######??????????????? | | ??###############????????#?????????????????????? | | ???????????????????????????????????????????????? | | | | | | | | | | | | | | | | | +----------------------------------------------------+ Best States ------------- Heat Dissipation 31 Energy Generation 21 Energy Capacity 430 Matter Stores 450 Matter Capacity 450 Sight Range 16 Robot Scan Range 14 Terrain Scan Density 10 Evasion (%) 55 Offensive Hacking 10 Item Schematics ----------------- None Robot Schematics ------------------ None Fabricated ------------ Nothing Alien Tech Used ----------------- None Achievements -------------- Close Call It's Just You Challenges ------------ None Game ------ Seed TiamatRiotActivator Manual? 0 Play Time 00:28:07 Cumulative 3.5 hours Start 2024.05.03 @ 10:52:31 End 2024.05.03 @ 11:24:43 Sessions 1 Manual Loads 0 Difficulty Rogue Special Mode None Game No. 8 Rogue 8 Adventurer 0 Explorer 0 Win Type - Total 0 Types 0/0/0/0/0/0/0/0/0 Lore% 0 Gallery% 11 Achievement% 8 Wizard Run 0 Options --------- Layout 1 ASCII 0 Keyboard 1 Movement Numpad Keybinds 0 Fullscreen 1 Font 24/Smallcaps Map View 50x35 Zoom Use 0% Tactical HUD 1 Map Filters NONE Filters NONE Steam 1 RUN: c10acb56-1498-4561-9285-7fd2c60c072d